[Event "Live Chess"]
[Site "Chess.com"]
[Date "2024.06.02"]
[Round "-"]
[White "JohanKjeldahl"]
[Black "educatedlad"]
[Result "0-1"]
[WhiteElo "1801"]
[BlackElo "1748"]
[TimeControl "300"]
[EndTime "7:47:23 PDT"]
[Termination "educatedlad won by resignation"]

1. e4 {[%clk 0:04:57.1]} 1... c5 {[%clk 0:04:59.6]} 2. Nf3 {[%clk 0:04:55.7]}
2... e6 {[%clk 0:04:59.2]} 3. d4 {[%clk 0:04:54.7]} 3... cxd4 {[%clk 0:04:59.1]}
4. Nxd4 {[%clk 0:04:53.6]} 4... Nc6 {[%clk 0:04:59]} 5. Nc3 {[%clk 0:04:51.8]}
5... a6 {[%clk 0:04:58.1]} 6. Be3 {[%clk 0:04:50.7]} 6... Nf6 {[%clk 0:04:56.6]}
7. Qd2 {[%clk 0:04:48.7]} 7... e5 {[%clk 0:04:55.9]} 8. Nf5 {[%clk 0:04:39.4]}
8... d5 {[%clk 0:04:54.4]} 9. exd5 {[%clk 0:04:36.6]} 9... Bxf5 {[%clk
0:04:53.1]} 10. dxc6 {[%clk 0:04:34.9]} 10... Qc7 {[%clk 0:04:53]} 11. cxb7
{[%clk 0:04:31.4]} 11... Qxb7 {[%clk 0:04:49.2]} 12. Bd3 {[%clk 0:04:09.9]}
12... Rd8 {[%clk 0:04:46.4]} 13. O-O {[%clk 0:04:07]} 13... e4 {[%clk
0:04:44.1]} 14. Qe2 {[%clk 0:03:47.9]} 14... exd3 {[%clk 0:04:42]} 15. cxd3
{[%clk 0:03:46.1]} 15... Bxd3 {[%clk 0:04:39.9]} 16. Qd1 {[%clk 0:03:32]} 16...
Bxf1 {[%clk 0:04:37]} 17. Qa4+ {[%clk 0:03:30.8]} 17... Bb5 {[%clk 0:04:34.6]}
18. Nxb5 {[%clk 0:03:29.8]} 18... axb5 {[%clk 0:04:33.6]} 19. Qb3 {[%clk
0:03:26]} 19... Be7 {[%clk 0:04:31.9]} 0-1

[Event "Live Chess"]
[Site "Chess.com"]
[Date "2024.06.02"]
[Round "-"]
[White "NeilDruggan73"]
[Black "wadsy27"]
[Result "0-1"]
[WhiteElo "1718"]
[BlackElo "2603"]
[TimeControl "300"]
[EndTime "7:47:39 PDT"]
[Termination "wadsy27 won on time"]

1. d4 {[%clk 0:04:57.1]} 1... d5 {[%clk 0:04:56.7]} 2. Bg5 {[%clk 0:04:54.2]}
2... Nf6 {[%clk 0:04:55.3]} 3. Bxf6 {[%clk 0:04:52.8]} 3... exf6 {[%clk
0:04:55.2]} 4. e3 {[%clk 0:04:50.3]} 4... c6 {[%clk 0:04:54.3]} 5. g3 {[%clk
0:04:49.2]} 5... Bd6 {[%clk 0:04:52.8]} 6. Bg2 {[%clk 0:04:47.9]} 6... O-O
{[%clk 0:04:52.4]} 7. Ne2 {[%clk 0:04:46.2]} 7... a5 {[%clk 0:04:49.9]} 8. a3
{[%clk 0:04:36.5]} 8... b5 {[%clk 0:04:43.8]} 9. O-O {[%clk 0:04:31.4]} 9... Bf5
{[%clk 0:04:37.6]} 10. Nd2 {[%clk 0:04:26.5]} 10... Re8 {[%clk 0:04:35.3]} 11.
b3 {[%clk 0:04:24.9]} 11... a4 {[%clk 0:04:33.5]} 12. c4 {[%clk 0:04:09.4]}
12... axb3 {[%clk 0:04:28.3]} 13. c5 {[%clk 0:04:07.5]} 13... Bc2 {[%clk
0:04:23.6]} 14. Qc1 {[%clk 0:04:02.2]} 14... Bc7 {[%clk 0:04:21.9]} 15. Qb2
{[%clk 0:03:59.4]} 15... Nd7 {[%clk 0:04:09.7]} 16. Nxb3 {[%clk 0:03:57.8]}
16... Bxb3 {[%clk 0:04:07.8]} 17. Qxb3 {[%clk 0:03:56.4]} 17... Qb8 {[%clk
0:04:02]} 18. Rfb1 {[%clk 0:03:30.2]} 18... f5 {[%clk 0:03:57.2]} 19. Bh3 {[%clk
0:03:23.7]} 19... g6 {[%clk 0:03:55.6]} 20. Nf4 {[%clk 0:03:13.2]} 20... Bxf4
{[%clk 0:03:52.7]} 21. gxf4 {[%clk 0:03:11.9]} 21... Nf6 {[%clk 0:03:52.2]} 22.
f3 {[%clk 0:03:08.4]} 22... Ra4 {[%clk 0:03:49.9]} 23. Rd1 {[%clk 0:03:00.6]}
23... Qa7 {[%clk 0:03:45.1]} 24. Kf2 {[%clk 0:02:55.9]} 24... Ra8 {[%clk
0:03:42.7]} 25. Rd3 {[%clk 0:02:50.2]} 25... b4 {[%clk 0:03:40.3]} 26. Bf1
{[%clk 0:02:36.6]} 26... Rxa3 {[%clk 0:03:36.4]} 27. Rxa3 {[%clk 0:02:34.8]}
27... bxa3 {[%clk 0:03:36.3]} 28. Qa2 {[%clk 0:02:31.1]} 28... Ne8 {[%clk
0:03:30.4]} 29. Rb3 {[%clk 0:02:29.5]} 29... Qa4 {[%clk 0:03:22.1]} 30. Rb6
{[%clk 0:02:24.1]} 30... Nc7 {[%clk 0:03:18.2]} 31. Bd3 {[%clk 0:02:15.7]} 31...
Ne6 {[%clk 0:03:12.3]} 32. Bc2 {[%clk 0:02:12.4]} 32... Qa5 {[%clk 0:03:00.2]}
33. Bd3 {[%clk 0:01:55.4]} 33... Qc3 {[%clk 0:02:51.9]} 34. Be2 {[%clk
0:01:48.7]} 34... Nxd4 {[%clk 0:02:32.6]} 35. exd4 {[%clk 0:01:41.1]} 35...
Qxd4+ {[%clk 0:02:31.1]} 36. Kg2 {[%clk 0:01:38.6]} 36... Qxc5 {[%clk
0:02:29.8]} 37. Rb3 {[%clk 0:01:24.6]} 37... Qd6 {[%clk 0:02:24.8]} 38. Kg3
{[%clk 0:00:30.7]} 38... h5 {[%clk 0:02:22]} 39. h4 {[%clk 0:00:27.7]} 39... Ra4
{[%clk 0:02:18.1]} 40. Qd2 {[%clk 0:00:14.2]} 40... a2 {[%clk 0:02:14.6]} 41.
Re3 {[%clk 0:00:10.7]} 41... Qxf4+ {[%clk 0:02:10.1]} 42. Kg2 {[%clk 0:00:08.6]}
42... Qxe3 {[%clk 0:02:06.1]} 43. Qxe3 {[%clk 0:00:06.6]} 43... a1=Q {[%clk
0:02:05.6]} 44. Qe8+ {[%clk 0:00:04.3]} 44... Kg7 {[%clk 0:02:04.3]} 45. Qe5+
{[%clk 0:00:03]} 45... Qxe5 {[%clk 0:01:59.9]} 0-1

[Event "Live Chess"]
[Site "Chess.com"]
[Date "2024.06.02"]
[Round "-"]
[White "ProfPoisson"]
[Black "booktrunk"]
[Result "0-1"]
[WhiteElo "1334"]
[BlackElo "1495"]
[TimeControl "300"]
[EndTime "7:47:46 PDT"]
[Termination "booktrunk won by resignation"]

1. e4 {[%clk 0:04:51.7]} 1... b6 {[%clk 0:04:56.7]} 2. Nc3 {[%clk 0:04:46.6]}
2... Bb7 {[%clk 0:04:56.6]} 3. f4 {[%clk 0:04:43.8]} 3... e6 {[%clk 0:04:56.5]}
4. Nf3 {[%clk 0:04:33.6]} 4... h6 {[%clk 0:04:56.4]} 5. Bc4 {[%clk 0:04:26.2]}
5... Bb4 {[%clk 0:04:56.3]} 6. O-O {[%clk 0:04:22.9]} 6... Bxc3 {[%clk
0:04:52.9]} 7. bxc3 {[%clk 0:04:20.1]} 7... Bxe4 {[%clk 0:04:50.2]} 8. d3 {[%clk
0:04:14.6]} 8... Bb7 {[%clk 0:04:48.1]} 9. Ba3 {[%clk 0:04:10.9]} 9... Ne7
{[%clk 0:04:44.5]} 10. Qe1 {[%clk 0:04:02.9]} 10... O-O {[%clk 0:04:42.5]} 11.
Qg3 {[%clk 0:03:56.1]} 11... Re8 {[%clk 0:04:40.9]} 12. Rae1 {[%clk 0:03:45.1]}
12... Nf5 {[%clk 0:04:38.9]} 13. Qg4 {[%clk 0:03:37.4]} 13... a5 {[%clk
0:04:28]} 14. Ne5 {[%clk 0:03:31.7]} 14... d5 {[%clk 0:04:21.3]} 15. Bb5 {[%clk
0:03:27.3]} 15... c6 {[%clk 0:04:18.6]} 16. Ba4 {[%clk 0:03:06.4]} 16... b5
{[%clk 0:04:16.9]} 17. Bb3 {[%clk 0:03:05]} 17... a4 {[%clk 0:04:15.8]} 18. Nxf7
{[%clk 0:02:53.3]} 18... Kxf7 {[%clk 0:04:10.4]} 19. Qh5+ {[%clk 0:02:50.8]}
19... Kg8 {[%clk 0:04:03.2]} 20. Bxd5 {[%clk 0:02:44.5]} 20... cxd5 {[%clk
0:03:57.7]} 21. Qg6 {[%clk 0:02:38.7]} 21... Nd7 {[%clk 0:03:48.5]} 22. Rxe6
{[%clk 0:02:35.8]} 22... Rxe6 {[%clk 0:03:43.7]} 23. Qxe6+ {[%clk 0:02:33.5]}
23... Kh8 {[%clk 0:03:25.8]} 24. Qxf5 {[%clk 0:02:31.7]} 24... Nf6 {[%clk
0:03:22.9]} 25. Re1 {[%clk 0:02:21.7]} 25... Bc8 {[%clk 0:03:18.2]} 26. Qg6
{[%clk 0:02:13.6]} 26... Ng8 {[%clk 0:03:00.8]} 27. Re8 {[%clk 0:02:02.8]} 27...
Qf6 {[%clk 0:02:51.3]} 28. Qg3 {[%clk 0:01:18.5]} 28... Bb7 {[%clk 0:02:48.5]}
29. Re5 {[%clk 0:01:00.8]} 29... Rc8 {[%clk 0:02:37.6]} 30. c4 {[%clk 0:00:51]}
30... bxc4 {[%clk 0:02:32.8]} 31. dxc4 {[%clk 0:00:47.2]} 31... Rxc4 {[%clk
0:02:29.5]} 32. Qd3 {[%clk 0:00:37.9]} 32... Rc8 {[%clk 0:02:15.9]} 33. g3
{[%clk 0:00:36.2]} 33... Qc6 {[%clk 0:02:05.3]} 34. Rh5 {[%clk 0:00:18.5]} 34...
Qxc2 {[%clk 0:02:01.2]} 35. Qg6 {[%clk 0:00:14.3]} 35... Qxg6 {[%clk 0:01:56.3]}
0-1

[Event "Live Chess"]
[Site "Chess.com"]
[Date "2024.06.02"]
[Round "-"]
[White "goldinspiredphoenix"]
[Black "LL220284LL"]
[Result "0-1"]
[WhiteElo "1501"]
[BlackElo "2467"]
[TimeControl "300"]
[EndTime "7:47:48 PDT"]
[Termination "LL220284LL won by checkmate"]

1. d4 {[%clk 0:04:55.6]} 1... g6 {[%clk 0:04:58.6]} 2. c4 {[%clk 0:04:54.1]}
2... Bg7 {[%clk 0:04:58.5]} 3. Nc3 {[%clk 0:04:51.7]} 3... c5 {[%clk 0:04:58]}
4. e3 {[%clk 0:04:48.8]} 4... cxd4 {[%clk 0:04:56.5]} 5. exd4 {[%clk 0:04:47]}
5... Nf6 {[%clk 0:04:54.7]} 6. Bf4 {[%clk 0:04:45.5]} 6... d6 {[%clk 0:04:53.8]}
7. Nf3 {[%clk 0:04:44.8]} 7... O-O {[%clk 0:04:52.8]} 8. Be2 {[%clk 0:04:43.5]}
8... Bg4 {[%clk 0:04:50.5]} 9. O-O {[%clk 0:04:39.7]} 9... Nc6 {[%clk
0:04:47.5]} 10. h3 {[%clk 0:04:36.4]} 10... Bxf3 {[%clk 0:04:46.4]} 11. Bxf3
{[%clk 0:04:34.3]} 11... Rc8 {[%clk 0:04:45.8]} 12. Be3 {[%clk 0:04:32.9]} 12...
a6 {[%clk 0:04:37.8]} 13. Qb3 {[%clk 0:04:29.7]} 13... Na5 {[%clk 0:04:34.8]}
14. Qb4 {[%clk 0:04:17]} 14... Rxc4 {[%clk 0:04:33.4]} 15. Qa3 {[%clk
0:04:12.2]} 15... Rc8 {[%clk 0:04:32.2]} 16. Rac1 {[%clk 0:04:07.8]} 16... b5
{[%clk 0:04:30.2]} 17. b4 {[%clk 0:04:02.9]} 17... Nc4 {[%clk 0:04:27.1]} 18.
Qxa6 {[%clk 0:03:49.5]} 18... Nxe3 {[%clk 0:04:20.5]} 19. fxe3 {[%clk 0:03:47]}
19... Bh6 {[%clk 0:04:19.8]} 20. Rfe1 {[%clk 0:03:44.3]} 20... Qd7 {[%clk
0:04:10.8]} 21. Kf2 {[%clk 0:03:29.4]} 21... Rb8 {[%clk 0:04:06.1]} 22. Qc6
{[%clk 0:03:11.1]} 22... Qa7 {[%clk 0:04:01.1]} 23. Rc2 {[%clk 0:02:53.1]} 23...
Rfc8 {[%clk 0:03:56.7]} 24. Nxb5 {[%clk 0:02:45.2]} 24... Rxc6 {[%clk
0:03:53.5]} 25. Bxc6 {[%clk 0:02:26]} 25... Qa4 {[%clk 0:03:46.8]} 26. Rb2
{[%clk 0:02:15.4]} 26... Rxb5 {[%clk 0:03:43.8]} 27. Bxb5 {[%clk 0:02:12.8]}
27... Qxb5 {[%clk 0:03:43]} 28. Rd1 {[%clk 0:01:55.6]} 28... Ne4+ {[%clk
0:03:41.3]} 29. Kf3 {[%clk 0:01:50.4]} 29... Qf5+ {[%clk 0:03:40.2]} 30. Ke2
{[%clk 0:01:48]} 30... Qf2+ {[%clk 0:03:39.3]} 31. Kd3 {[%clk 0:01:47.2]} 31...
Qxb2 {[%clk 0:03:38.6]} 32. Kxe4 {[%clk 0:01:46.4]} 32... Qc2+ {[%clk
0:03:37.9]} 33. Kf3 {[%clk 0:01:43.6]} 33... Qxd1+ {[%clk 0:03:36.9]} 34. Kf2
{[%clk 0:01:37]} 34... Qd2+ {[%clk 0:03:36]} 35. Kf1 {[%clk 0:01:34.3]} 35...
Bxe3 {[%clk 0:03:35.9]} 36. g4 {[%clk 0:01:32.4]} 36... Qf2# {[%clk 0:03:35.8]}
0-1

[Event "Live Chess"]
[Site "Chess.com"]
[Date "2024.06.02"]
[Round "-"]
[White "Larchikov"]
[Black "Colm_Buckley"]
[Result "1-0"]
[WhiteElo "2097"]
[BlackElo "1877"]
[TimeControl "300"]
[EndTime "7:47:57 PDT"]
[Termination "Larchikov won by resignation"]

1. e4 {[%clk 0:04:58.9]} 1... e6 {[%clk 0:04:58.9]} 2. Nf3 {[%clk 0:04:56.7]}
2... g6 {[%clk 0:04:54.9]} 3. d4 {[%clk 0:04:55.1]} 3... Bg7 {[%clk 0:04:54.1]}
4. c3 {[%clk 0:04:53.9]} 4... b6 {[%clk 0:04:52.5]} 5. Bd3 {[%clk 0:04:53.1]}
5... Bb7 {[%clk 0:04:50.6]} 6. O-O {[%clk 0:04:52.7]} 6... c5 {[%clk 0:04:49.6]}
7. Bg5 {[%clk 0:04:51.1]} 7... f6 {[%clk 0:04:43.1]} 8. Bf4 {[%clk 0:04:45.6]}
8... cxd4 {[%clk 0:04:39.3]} 9. cxd4 {[%clk 0:04:43.5]} 9... Ne7 {[%clk
0:04:31.4]} 10. Qd2 {[%clk 0:04:38.5]} 10... O-O {[%clk 0:04:29]} 11. Nc3 {[%clk
0:04:35.3]} 11... Nbc6 {[%clk 0:04:27.3]} 12. d5 {[%clk 0:04:29.1]} 12... exd5
{[%clk 0:04:20]} 13. exd5 {[%clk 0:04:29]} 13... Nb4 {[%clk 0:04:11.7]} 14. Bd6
{[%clk 0:04:24.5]} 14... Nxd3 {[%clk 0:03:56.7]} 15. Qxd3 {[%clk 0:04:24.4]}
15... Re8 {[%clk 0:03:54.2]} 16. Rfe1 {[%clk 0:04:22.3]} 16... Nf5 {[%clk
0:03:52.6]} 17. Bf4 {[%clk 0:04:18.5]} 17... Rxe1+ {[%clk 0:03:38.7]} 18. Rxe1
{[%clk 0:04:18.4]} 18... Qf8 {[%clk 0:03:32.6]} 19. g4 {[%clk 0:04:08.5]} 19...
Nd6 {[%clk 0:03:19]} 20. Bxd6 {[%clk 0:03:54.6]} 20... Qxd6 {[%clk 0:03:16.6]}
21. Nb5 {[%clk 0:03:54.1]} 21... Qxd5 {[%clk 0:03:04.2]} 22. Qxd5+ {[%clk
0:03:51.4]} 22... Bxd5 {[%clk 0:03:02.4]} 23. Nc7 {[%clk 0:03:49.7]} 23... Bxf3
{[%clk 0:02:48.6]} 24. Nxa8 {[%clk 0:03:48.2]} 24... Kf7 {[%clk 0:02:40.8]} 25.
Nc7 {[%clk 0:03:41.8]} 25... Bxg4 {[%clk 0:02:35.2]} 26. Nb5 {[%clk 0:03:38.5]}
26... Be6 {[%clk 0:02:25.4]} 27. b3 {[%clk 0:03:30.4]} 27... a6 {[%clk
0:02:16.1]} 28. Nd6+ {[%clk 0:03:26]} 28... Kf8 {[%clk 0:02:04.9]} 29. Rc1
{[%clk 0:03:20.1]} 29... Bh6 {[%clk 0:01:56.3]} 30. Rc8+ {[%clk 0:03:09.8]}
30... Kg7 {[%clk 0:01:54.4]} 31. Rb8 {[%clk 0:03:03.9]} 31... Bf4 {[%clk
0:01:49.7]} 32. Rxb6 {[%clk 0:03:02.3]} 32... a5 {[%clk 0:01:41.4]} 33. Ra6
{[%clk 0:02:43.6]} 33... a4 {[%clk 0:01:32.3]} 34. bxa4 {[%clk 0:02:32.6]} 34...
Bxa2 {[%clk 0:01:30.8]} 35. Ra7 {[%clk 0:02:18.3]} 35... Be6 {[%clk 0:01:11.7]}
36. Ne8+ {[%clk 0:02:14.8]} 36... Kf7 {[%clk 0:01:03.7]} 37. Nc7 {[%clk
0:02:13.5]} 1-0

[Event "Live Chess"]
[Site "Chess.com"]
[Date "2024.06.02"]
[Round "-"]
[White "imchessive"]
[Black "80Times"]
[Result "1-0"]
[WhiteElo "1597"]
[BlackElo "1875"]
[TimeControl "300"]
[EndTime "7:47:57 PDT"]
[Termination "imchessive won by resignation"]

1. d4 {[%clk 0:04:59.1]} 1... e6 {[%clk 0:04:58.7]} 2. g3 {[%clk 0:04:58.1]}
2... f5 {[%clk 0:04:57.6]} 3. Bg2 {[%clk 0:04:56.8]} 3... Nf6 {[%clk 0:04:57.1]}
4. c4 {[%clk 0:04:55.2]} 4... Be7 {[%clk 0:04:55.2]} 5. Nc3 {[%clk 0:04:54.3]}
5... O-O {[%clk 0:04:53.6]} 6. Nf3 {[%clk 0:04:52]} 6... d6 {[%clk 0:04:49.5]}
7. O-O {[%clk 0:04:51.1]} 7... Ne4 {[%clk 0:04:47.9]} 8. Nd2 {[%clk 0:04:43.5]}
8... Nxc3 {[%clk 0:04:19.7]} 9. bxc3 {[%clk 0:04:43.4]} 9... d5 {[%clk
0:04:18.5]} 10. cxd5 {[%clk 0:04:38.6]} 10... exd5 {[%clk 0:04:17.4]} 11. Qb3
{[%clk 0:04:36.7]} 11... c6 {[%clk 0:04:16.2]} 12. Re1 {[%clk 0:04:25.8]} 12...
Qb6 {[%clk 0:04:08.9]} 13. Nf3 {[%clk 0:03:59.3]} 13... Nd7 {[%clk 0:04:01.7]}
14. Bf4 {[%clk 0:03:50.9]} 14... g5 {[%clk 0:03:54]} 15. Bxg5 {[%clk 0:03:46.7]}
15... Bd6 {[%clk 0:03:50.4]} 16. Qc2 {[%clk 0:03:39]} 16... Qc7 {[%clk
0:03:41.9]} 17. Bh3 {[%clk 0:03:31]} 17... Nb6 {[%clk 0:03:37.1]} 18. Nh4 {[%clk
0:03:14.1]} 18... f4 {[%clk 0:03:33.8]} 19. Bxc8 {[%clk 0:03:04.7]} 19... Raxc8
{[%clk 0:03:27.5]} 20. Nf3 {[%clk 0:02:51.6]} 20... fxg3 {[%clk 0:03:25.8]} 21.
hxg3 {[%clk 0:02:50.1]} 21... Bxg3 {[%clk 0:03:18.2]} 22. Kg2 {[%clk 0:02:24.7]}
22... Bf4 {[%clk 0:03:09.2]} 23. Rh1 {[%clk 0:02:11.7]} 23... Qg7 {[%clk
0:03:04.5]} 24. Rag1 {[%clk 0:01:55.1]} 24... h6 {[%clk 0:02:46.9]} 25. Rxh6
{[%clk 0:01:26.9]} 25... Bxg5 {[%clk 0:02:35.6]} 26. Rg6 {[%clk 0:01:24.8]} 1-0

[Event "Live Chess"]
[Site "Chess.com"]
[Date "2024.06.02"]
[Round "-"]
[White "stevochess11"]
[Black "GoldsmanB"]
[Result "1-0"]
[WhiteElo "1693"]
[BlackElo "1109"]
[TimeControl "300"]
[EndTime "7:48:00 PDT"]
[Termination "stevochess11 won by resignation"]

1. d4 {[%clk 0:04:57.8]} 1... Nf6 {[%clk 0:04:58.6]} 2. Nf3 {[%clk 0:04:55.6]}
2... e6 {[%clk 0:04:57.9]} 3. e3 {[%clk 0:04:49.6]} 3... d5 {[%clk 0:04:56.3]}
4. Bd3 {[%clk 0:04:48.5]} 4... Nc6 {[%clk 0:04:54.5]} 5. c3 {[%clk 0:04:39.3]}
5... Bd6 {[%clk 0:04:53.3]} 6. Nbd2 {[%clk 0:04:34.9]} 6... O-O {[%clk
0:04:50.8]} 7. O-O {[%clk 0:04:34]} 7... Bd7 {[%clk 0:04:49.8]} 8. e4 {[%clk
0:04:32.7]} 8... dxe4 {[%clk 0:04:47.9]} 9. Nxe4 {[%clk 0:04:32.6]} 9... Nxe4
{[%clk 0:04:46.4]} 10. Bxe4 {[%clk 0:04:32.5]} 10... Qf6 {[%clk 0:04:43.6]} 11.
Bg5 {[%clk 0:04:26.6]} 1-0

[Event "Live Chess"]
[Site "Chess.com"]
[Date "2024.06.02"]
[Round "-"]
[White "RichardABates"]
[Black "KeithArkell"]
[Result "1-0"]
[WhiteElo "2378"]
[BlackElo "2392"]
[TimeControl "300"]
[EndTime "7:48:17 PDT"]
[Termination "RichardABates won by resignation"]

1. d4 {[%clk 0:04:57.9]} 1... Nf6 {[%clk 0:04:39]} 2. Nf3 {[%clk 0:04:55.8]}
2... e6 {[%clk 0:04:37.9]} 3. c4 {[%clk 0:04:54.1]} 3... Bb4+ {[%clk 0:04:36.2]}
4. Bd2 {[%clk 0:04:53.1]} 4... Bxd2+ {[%clk 0:04:35.4]} 5. Qxd2 {[%clk
0:04:51.5]} 5... d6 {[%clk 0:04:35.3]} 6. Nc3 {[%clk 0:04:50.2]} 6... Qe7 {[%clk
0:04:35.2]} 7. e3 {[%clk 0:04:45.9]} 7... e5 {[%clk 0:04:34.5]} 8. Be2 {[%clk
0:04:43.6]} 8... O-O {[%clk 0:04:32.3]} 9. O-O {[%clk 0:04:39.6]} 9... Bg4
{[%clk 0:04:26.4]} 10. Rfd1 {[%clk 0:04:34.3]} 10... Re8 {[%clk 0:04:23.3]} 11.
Rac1 {[%clk 0:04:26.4]} 11... c6 {[%clk 0:04:18.9]} 12. b4 {[%clk 0:04:18.8]}
12... e4 {[%clk 0:04:16.1]} 13. Ne1 {[%clk 0:04:17.1]} 13... Bxe2 {[%clk
0:04:14.1]} 14. Nxe2 {[%clk 0:04:08.5]} 14... Nbd7 {[%clk 0:03:50.5]} 15. b5
{[%clk 0:04:01.1]} 15... h5 {[%clk 0:03:40.1]} 16. a4 {[%clk 0:03:45.7]} 16...
h4 {[%clk 0:02:03.6]} 17. h3 {[%clk 0:03:44]} 17... g5 {[%clk 0:01:59.7]} 18. a5
{[%clk 0:03:37.3]} 18... a6 {[%clk 0:01:53.9]} 19. bxc6 {[%clk 0:03:28.8]} 19...
Kg7 {[%clk 0:00:18]} 20. cxd7 {[%clk 0:03:25.4]} 1-0

[Event "Live Chess"]
[Site "Chess.com"]
[Date "2024.06.02"]
[Round "-"]
[White "Dashman93"]
[Black "CheckThis4"]
[Result "0-1"]
[WhiteElo "2156"]
[BlackElo "2682"]
[TimeControl "300"]
[EndTime "7:48:30 PDT"]
[Termination "CheckThis4 won by resignation"]

1. e4 {[%clk 0:04:57.5]} 1... d5 {[%clk 0:04:59.1]} 2. Nc3 {[%clk 0:04:51.9]}
2... d4 {[%clk 0:04:54.3]} 3. Nce2 {[%clk 0:04:50.8]} 3... e5 {[%clk 0:04:53.7]}
4. Nf3 {[%clk 0:04:50]} 4... f6 {[%clk 0:04:50.9]} 5. Ng3 {[%clk 0:04:48.4]}
5... Be6 {[%clk 0:04:49.6]} 6. Bb5+ {[%clk 0:04:45.1]} 6... Nd7 {[%clk
0:04:48.2]} 7. Ba4 {[%clk 0:04:43.8]} 7... d3 {[%clk 0:04:44.8]} 8. cxd3 {[%clk
0:04:42.7]} 8... Nh6 {[%clk 0:04:33.5]} 9. d4 {[%clk 0:04:37.8]} 9... Bg4 {[%clk
0:04:26.2]} 10. dxe5 {[%clk 0:04:32.6]} 10... fxe5 {[%clk 0:04:23.4]} 11. h3
{[%clk 0:04:27.1]} 11... Be6 {[%clk 0:04:13.3]} 12. Nxe5 {[%clk 0:04:22.1]}
12... Bd6 {[%clk 0:04:07.8]} 13. Qh5+ {[%clk 0:04:15.1]} 13... Nf7 {[%clk
0:04:05.2]} 14. Nxd7 {[%clk 0:04:00.8]} 14... Bxd7 {[%clk 0:04:00.8]} 15. Bxd7+
{[%clk 0:03:47.6]} 15... Qxd7 {[%clk 0:03:59.6]} 16. O-O {[%clk 0:03:38.5]}
16... g6 {[%clk 0:03:55.8]} 17. Qd5 {[%clk 0:03:33.1]} 17... O-O-O {[%clk
0:03:51.6]} 18. d4 {[%clk 0:03:30.3]} 18... Bxg3 {[%clk 0:03:32]} 19. Qxd7+
{[%clk 0:03:28.8]} 19... Rxd7 {[%clk 0:03:31.9]} 20. fxg3 {[%clk 0:03:28.2]}
20... Nd6 {[%clk 0:03:30.1]} 21. Re1 {[%clk 0:03:19.6]} 21... Re8 {[%clk
0:03:27.8]} 22. Bf4 {[%clk 0:03:04.7]} 22... Nxe4 {[%clk 0:03:25.8]} 23. Rac1
{[%clk 0:03:02.9]} 23... c6 {[%clk 0:03:21.6]} 24. Rc4 {[%clk 0:02:54.2]} 24...
Rd5 {[%clk 0:03:07.8]} 25. Be5 {[%clk 0:02:40]} 25... Nd6 {[%clk 0:03:03.3]} 26.
Rc2 {[%clk 0:02:38]} 26... Kd7 {[%clk 0:02:50.1]} 27. Rce2 {[%clk 0:02:36]}
27... Nf5 {[%clk 0:02:48.4]} 28. Re4 {[%clk 0:02:23.8]} 28... h5 {[%clk
0:02:30.5]} 29. g4 {[%clk 0:02:21.7]} 29... hxg4 {[%clk 0:02:29.6]} 30. hxg4
{[%clk 0:02:21.6]} 30... Nh6 {[%clk 0:02:23.2]} 31. Rf1 {[%clk 0:02:08.9]} 31...
Re7 {[%clk 0:02:15.3]} 32. Ree1 {[%clk 0:02:05]} 32... Nxg4 {[%clk 0:02:11.4]}
33. Bh8 {[%clk 0:01:56.9]} 33... Rxe1 {[%clk 0:02:04.3]} 34. Rxe1 {[%clk
0:01:56.8]} 34... Rh5 {[%clk 0:02:02.3]} 35. Bg7 {[%clk 0:01:54.5]} 35... Rh7
{[%clk 0:01:50.2]} 36. Be5 {[%clk 0:01:52.6]} 36... Re7 {[%clk 0:01:48.4]} 37.
Bg3 {[%clk 0:01:46.8]} 37... Rxe1+ {[%clk 0:01:43.5]} 38. Bxe1 {[%clk
0:01:46.6]} 38... Ke6 {[%clk 0:01:43]} 39. Bc3 {[%clk 0:01:39.6]} 39... Kd5
{[%clk 0:01:40.5]} 40. Kf1 {[%clk 0:01:38.5]} 40... Ke4 {[%clk 0:01:38.8]} 41.
Ke2 {[%clk 0:01:37.6]} 41... b5 {[%clk 0:01:37.4]} 42. a3 {[%clk 0:01:36.5]}
42... Ne3 {[%clk 0:01:33.3]} 43. g3 {[%clk 0:01:34.9]} 43... g5 {[%clk 0:01:20]}
44. Be1 {[%clk 0:01:32.8]} 44... g4 {[%clk 0:01:17]} 45. Bf2 {[%clk 0:01:30.6]}
45... Nf5 {[%clk 0:01:15.6]} 46. d5 {[%clk 0:01:28.9]} 46... cxd5 {[%clk
0:01:12.7]} 47. Bxa7 {[%clk 0:01:28]} 47... Nxg3+ {[%clk 0:01:11.8]} 48. Kf2
{[%clk 0:01:27.8]} 48... Nf5 {[%clk 0:01:09.3]} 49. b3 {[%clk 0:01:27.1]} 49...
d4 {[%clk 0:01:05.7]} 50. a4 {[%clk 0:01:26.1]} 50... bxa4 {[%clk 0:00:58.2]}
51. bxa4 {[%clk 0:01:26]} 51... g3+ {[%clk 0:00:53.8]} 52. Kg2 {[%clk
0:01:17.6]} 52... d3 {[%clk 0:00:52.8]} 53. Bc5 {[%clk 0:01:16.4]} 53... d2
{[%clk 0:00:51.3]} 0-1